bitfinex/quotes_SOLUSD_20240712
["timestamp","ask_amount","ask_price","bid_price","bid_amount"]
[1720778405134,7.408,134.99,134.95,7.4099]
[1720778405457,36.9876,135.0,134.95,7.4099]
[1720778405665,7.4079,134.99,134.96,1.42631211]
[1720778406346,47.0256,135.05,134.97,7.4085]
[1720778406347,2.94779081,135.05,134.97,7.4085]
[1720778406522,7.408,134.99,134.95,7.4099]
[1720778406852,29.58,135.02,134.93,45.0]
[1720778407025,27.4072,135.01,134.97,7.4085]
[1720778407622,27.4072,135.01,134.96,7.4094]
[1720778407825,20.0,135.01,134.95,7.41]
[1720778408043,20.0,135.01,134.96,7.4095]
[1720778408243,20.0,135.01,134.92,15.2505]
[1720778408457,7.4081,134.99,134.95,7.4098]
[1720778408654,7.4075,135.0,134.95,7.4098]
[1720778410851,27.407,135.01,134.96,7.4095]
[1720778411059,27.407,135.01,134.97,7.4087]
[1720778411246,7.4075,135.0,134.95,7.4099]
[1720778411648,27.407,135.01,134.96,7.4095]
[1720778412059,7.4075,135.0,134.96,7.4095]
[1720778412563,7.4075,135.0,134.95,7.4099]
[1720778412741,7.4075,135.0,134.96,7.4095]
[1720778413148,27.407,135.01,134.97,7.4087]
[1720778413654,7.4075,135.0,134.96,7.4095]
[1720778414360,7.4081,134.99,134.95,7.4099]
[1720778415939,7.4076,135.0,134.95,7.4099]
[1720778416131,7.4076,135.0,134.96,7.4094]
[1720778418051,7.4079,134.99,134.95,7.4099]
[1720778420144,29.58,135.0,134.93,1.48178878]
[1720778420347,7.409,134.97,134.93,8.89268878]
[1720778420668,7.4086,134.98,134.94,7.4106]
[1720778422064,7.4086,134.98,134.86,47.45246942]
[1720778422065,29.58,134.98,134.88,22.0]
[1720778422277,29.58,134.96,134.88,22.0]
[1720778422460,7.4115,134.93,134.89,7.4131]
[1720778422966,7.4115,134.93,134.88,22.0]
[1720778423136,7.4115,134.93,134.88,29.4136]
[1720778423656,7.4115,134.93,134.89,7.4134]
[1720778423851,36.9908,134.94,134.9,7.4128]
[1720778424275,36.9908,134.94,134.89,7.4131]
[1720778424577,7.4127,134.91,134.85,21.5119]
[1720778424892,7.4113,134.93,134.85,21.5119]
[1720778425082,7.4113,134.93,134.89,7.4131]
[1720778425580,29.58,134.94,134.9,7.4128]
[1720778425581,36.9908,134.94,134.9,7.4128]
[1720778425865,7.4108,134.94,134.9,7.4128]
[1720778426468,7.4108,134.94,134.89,7.4132]
[1720778426647,14.81,134.91,134.88,7.4139]
[1720778426843,14.81,134.9,134.88,7.4139]
[1720778427460,14.81,134.9,134.89,7.4134]
[1720778427766,7.4114,134.93,134.89,7.4134]
[1720778427987,14.81,134.91,134.89,7.4134]
[1720778428137,14.81,134.9,134.88,7.4137]
[1720778428646,7.4108,134.94,134.89,7.4134]
[1720778428837,14.81,134.91,134.9,7.4127]
[1720778429045,14.81,134.91,134.89,7.4132]
[1720778430075,14.81,134.9,134.88,7.4138]
[1720778430245,14.81,134.9,134.89,7.4134]
[1720778430566,14.81,134.9,134.88,7.4138]
[1720778431064,14.81,134.89,134.88,7.4138]
[1720778431252,14.81,134.89,134.87,7.4143]
[1720778431452,14.81,134.88,134.87,7.4143]
[1720778432479,14.81,134.88,134.86,7.4148]
[1720778434488,14.81,134.87,134.85,7.4153]
[1720778434666,14.81,134.87,134.86,7.415]
[1720778435057,14.81,134.88,134.87,7.4144]
[1720778435268,14.81,134.89,134.87,7.4144]
[1720778435450,15.1373,134.94,134.83,14.81]
[1720778435451,7.4118,134.92,134.88,7.4139]
[1720778435776,14.81,134.9,134.88,7.4139]
[1720778437072,14.81,134.9,134.89,8.17000194]
[1720778437379,14.81,134.91,134.89,8.17000194]
[1720778437875,14.81,134.91,134.89,7.4132]
[1720778438055,14.81,134.91,134.88,7.4137]
[1720778438268,7.4118,134.92,134.88,7.4137]
[1720778438269,14.81,134.9,134.88,7.4137]
[1720778438578,14.81,134.91,134.89,7.4134]
[1720778438792,15.9577,134.98,134.85,22.5154]
[1720778439079,6.1164,135.03,134.93,14.81]
[1720778439253,14.81,134.99,134.97,7.4088]
[1720778439544,14.81,134.99,134.92,15.987]
[1720778439545,14.81,135.0,134.95,14.81]
[1720778439828,16.77973502,135.06,134.99,7.4079]
[1720778439829,14.81,135.01,134.99,7.4079]
[1720778440219,14.81,135.0,134.98,7.4083]
[1720778440374,14.81,134.99,134.97,7.409]
[1720778440580,7.4069,135.01,134.97,7.409]
[1720778440793,7.4063,135.02,134.97,7.409]
[1720778440962,29.58,135.04,134.92,15.987]
[1720778440963,7.4058,135.03,134.99,7.4076]
[1720778441389,7.4054,135.04,135.0,8.88846076]
[1720778441600,7.43351681,135.05,135.0,1.48136076]
[1720778441921,7.4039,135.07,135.02,7.4062]
[1720778442184,36.4051424,135.09,135.01,7.4064]
[1720778442354,36.4051424,135.09,134.98,21.7666]
[1720778442355,36.9836,135.07,135.03,7.4057]
[1720778442699,36.4051424,135.09,135.05,7.4042]
[1720778442700,0.6353424,135.09,135.05,7.4042]
[1720778443011,0.6353424,135.09,135.06,7.404]
[1720778443303,0.6353424,135.09,135.06,8.88289654]
[1720778443663,0.6353424,135.09,135.06,8.88239654]
[1720778443886,0.6353424,135.09,135.07,7.4035]
[1720778444431,0.6353424,135.09,135.06,7.4039]
[1720778444625,0.6353424,135.09,135.07,1.47867755]
[1720778444887,0.6353424,135.09,135.04,21.5492]
[1720778445071,8.0382424,135.09,135.04,28.954]
[1720778445387,0.6353424,135.09,135.05,7.4045]
[1720778445584,0.6353424,135.09,135.05,7.4041]
[1720778445976,0.6353424,135.09,135.06,7.404]
[1720778446177,0.6353424,135.09,135.08,7.403]
[1720778446386,0.6353424,135.09,135.07,7.4034]
[1720778446675,0.6353424,135.09,135.06,7.4039]
[1720778447922,0.6353424,135.09,135.04,21.5492]
[1720778447923,0.6353424,135.09,135.07,7.4034]
[1720778448467,0.6353424,135.09,135.04,21.5492]
[1720778448577,0.6353424,135.09,135.05,45.0]
[1720778448997,0.6353424,135.09,135.06,7.404]
[1720778449223,0.6353424,135.09,135.04,21.5492]
[1720778449393,7.4034,135.08,135.03,7.4055]
[1720778450082,0.6353424,135.09,135.05,7.4041]
[1720778450283,0.6353424,135.09,135.08,7.403]
[1720778451913,0.6353424,135.09,135.08,53.88317252]
[1720778453380,0.6353424,135.09,135.08,80.08267252]
[1720778453922,0.6353424,135.09,135.08,78.6025]
[1720778454252,0.6353424,135.09,135.08,13.6025]
[1720778455387,0.6353424,135.09,135.08,6.1995]
[1720778455731,0.6353424,135.09,135.08,7.403]
[1720778459600,7.74946743,135.2,135.09,22.542]
[1720778459848,7.3959,135.21,135.1,94.58]
[1720778460025,0.832633,135.22,135.1,94.58]
[1720778460256,7.397,135.19,135.14,7.3996]
[1720778460568,30.412633,135.22,135.12,7.4007]
[1720778460569,7.3984,135.17,135.12,7.4007]
[1720778460837,29.58,135.2,135.1,45.0]
[1720778460999,36.9768,135.2,135.15,7.3988]
[1720778461151,7.3968,135.2,135.16,7.3985]
[1720778461326,7.3961,135.21,135.16,7.3985]
[1720778461546,7.3966,135.2,135.1,45.0]
[1720778461842,48.0716,135.2,135.13,7.3999]
[1720778462246,79.5103,135.2,135.09,22.542]
[1720778462533,7.3987,135.16,135.11,7.4008]
[1720778462761,94.58,135.19,135.09,22.542]
[1720778462946,7.3977,135.18,135.14,7.3996]
[1720778463157,20.0,135.19,135.09,22.542]
[1720778463158,7.3981,135.17,135.09,22.542]
[1720778463315,7.3995,135.15,135.11,7.4012]
[1720778463578,7.3995,135.15,135.09,22.542]
[1720778463579,7.3995,135.15,135.1,7.4018]
[1720778463795,7.3988,135.16,135.11,7.4013]
[1720778463963,29.58,135.18,135.09,22.542]
[1720778464122,7.3982,135.17,135.13,7.4001]
[1720778464512,36.9777,135.18,135.13,7.4001]
[1720778464648,36.9777,135.18,135.09,22.542]
[1720778464952,7.3986,135.16,135.12,7.4007]
[1720778465127,69.51,135.2,135.09,22.542]
[1720778465128,18.4877,135.23,135.09,22.542]
[1720778465333,7.3963,135.21,135.16,7.3983]
[1720778465609,7.398,135.18,135.13,7.4002]
[1720778465839,29.58,135.19,135.09,22.542]
[1720778466050,7.4003,135.13,135.09,29.9443]
[1720778466215,7.4003,135.13,135.09,7.4023]
[1720778466416,7.3998,135.14,135.1,7.4019]
[1720778466621,54.1671,135.17,135.06,6.4726]
[1720778466622,29.58,135.15,135.06,6.4726]
[1720778466832,7.4011,135.12,135.07,7.4032]
[1720778467051,7.4013,135.11,135.06,6.4726]
[1720778467631,29.58,135.14,135.09,7.4021]
[1720778467841,36.9802,135.14,135.1,7.4017]
[1720778468019,36.9802,135.14,135.09,7.4022]
[1720778468280,36.9802,135.14,135.1,7.4018]
[1720778468546,36.9802,135.14,135.09,7.4023]
[1720778468746,7.4003,135.13,135.09,7.4023]
[1720778469056,48.0822,135.12,135.05,15.4009]
[1720778469243,48.0822,135.12,135.04,7.4051]
[1720778469550,7.4034,135.08,135.03,7.4056]
[1720778469855,7.4035,135.07,135.03,7.4056]
[1720778470027,7.4031,135.08,135.03,7.4056]
[1720778470217,7.4029,135.09,135.04,7.4051]
[1720778470460,29.58,135.1,135.03,7.4055]
[1720778470461,7.4034,135.08,135.03,7.4055]
[1720778470616,29.58,135.1,135.03,7.4055]
[1720778471118,36.9821,135.1,135.01,16.2264]
[1720778471321,7.4035,135.07,135.03,7.4055]
[1720778471622,7.4039,135.07,135.02,7.4059]
[1720778471957,7.4052,135.05,135.0,7.4072]
[1720778472523,7.4053,135.04,135.0,7.4072]
[1720778472933,7.4053,135.04,134.97,16.4751]
[1720778473127,5.80427211,135.04,134.99,7.4076]
[1720778473555,5.80427211,135.04,135.0,7.4071]
[1720778473930,7.4058,135.03,134.97,16.4751]
[1720778474149,29.58,135.04,134.97,7.4089]
[1720778474363,29.58,135.04,134.94,16.6588]
[1720778474364,7.408,134.99,134.94,24.0693]
[1720778474871,7.408,134.99,134.92,6.3013]
[1720778474872,7.4086,134.98,134.93,7.4111]
[1720778475228,7.4096,134.96,134.91,7.412]
[1720778475584,7.4096,134.96,134.9,16.1712]
[1720778475788,7.4106,134.95,134.9,23.584]
[1720778475943,7.4106,134.95,134.91,7.4122]
[1720778476224,7.4106,134.95,134.9,16.1712]
[1720778476225,7.4086,134.98,134.9,16.1712]
[1720778476471,7.4091,134.97,134.9,16.1712]
[1720778476763,29.58,134.99,134.9,16.1712]
[1720778476764,7.4087,134.98,134.93,7.411]
[1720778476956,18.5174,135.01,134.92,7.4117]
[1720778477144,18.5201,134.99,134.91,7.4121]
[1720778477333,7.4104,134.95,134.9,23.584]
[1720778477749,7.4097,134.96,134.9,16.1712]
[1720778477872,7.4103,134.95,134.91,7.4121]
[1720778478067,7.4107,134.94,134.9,7.4127]
[1720778478256,7.4107,134.94,134.88,6.3752]
[1720778478257,7.4102,134.95,134.91,7.4123]
[1720778478549,7.4097,134.96,134.91,7.4123]
[1720778478758,7.4101,134.95,134.9,18.5316]
[1720778478946,7.4101,134.95,134.9,25.9443]
[1720778479139,7.4097,134.96,134.9,18.5316]
[1720778479341,7.4092,134.97,134.92,7.4117]
[1720778480033,7.4086,134.98,134.93,7.4112]
[1720778480465,7.4086,134.98,134.94,7.4105]
[1720778480842,7.4081,134.99,134.94,7.4105]
[1720778481744,7.4086,134.98,134.94,7.4105]
[1720778481940,7.408,134.99,134.94,7.4105]
[1720778482525,18.5169,135.02,134.95,7.4097]
[1720778482860,7.4083,134.99,134.94,7.4105]
[1720778483350,18.5169,135.02,134.93,7.411]
[1720778483790,45.0,135.01,134.93,7.411]
[1720778484175,7.4086,134.98,134.93,7.411]
[1720778484400,55.9993,135.03,134.95,7.41]
[1720778484661,7.407,135.01,134.96,7.4096]
[1720778484962,20.0,135.02,134.98,7.4084]
[1720778484963,7.4064,135.02,134.98,7.4084]
[1720778485463,7.4074,135.0,134.96,13.4991]
[1720778486035,7.4069,135.01,134.96,13.4991]
[1720778486228,7.4064,135.02,134.96,22.6912]
[1720778486427,7.4054,135.04,134.99,7.4075]
[1720778486682,6.1636,135.06,134.96,22.6912]
[1720778486683,7.4048,135.05,134.96,22.6912]
[1720778486986,33.9321,135.07,135.0,7.407]
[1720778487138,13.47830722,135.09,135.01,7.4067]
[1720778487451,21.21883173,135.09,135.01,7.4067]
[1720778487703,13.47830722,135.09,135.01,7.4067]
[1720778487845,10.0,135.08,134.96,22.6912]
[1720778488029,21.22059856,135.09,134.97,45.64258815]
[1720778488237,13.47830722,135.09,135.0,7.407]
[1720778488453,31.98570722,135.09,134.97,45.0]
[1720778488843,7.4044,135.06,135.01,7.4066]
[1720778489243,7.4044,135.06,135.02,7.4061]
[1720778490268,18.5074,135.09,134.97,45.0]
[1720778490457,7.4053,135.04,135.0,7.4073]
[1720778491033,20.0,135.08,134.97,45.0]
[1720778491406,7.4044,135.06,135.01,7.4066]
[1720778491561,18.5077,135.08,135.0,7.4072]
[1720778491811,7.4055,135.04,135.0,7.4072]
[1720778491953,7.4055,135.04,134.99,7.4077]
[1720778492340,7.4055,135.04,135.0,7.4072]
[1720778492965,7.4042,135.06,135.01,7.4068]
[1720778493142,18.5077,135.08,134.98,1.48128185]
[1720778493143,7.4037,135.07,134.98,1.48128185]
[1720778493443,7.4037,135.07,135.03,7.4054]
[1720778494450,7.4034,135.08,135.04,7.4052]
[1720778496558,7.4022,135.1,135.06,7.404]
[1720778496957,18.5023,135.12,135.03,6.4228]
[1720778497129,10.0,135.13,135.03,6.4228]
[1720778497350,7.4043,135.06,135.03,6.4228]
[1720778497567,20.0,135.12,135.03,6.4228]
[1720778497568,17.11670722,135.13,135.03,6.4228]
[1720778497760,18.5075,135.08,135.03,6.4228]
[1720778497957,18.5046,135.11,135.03,6.4228]
[1720778498151,7.4029,135.09,135.04,7.405]
[1720778498560,18.5046,135.11,135.04,7.405]
[1720778498757,7.4027,135.09,135.04,7.405]
[1720778499584,7.4035,135.07,135.03,13.8283]
[1720778499796,7.4035,135.07,135.03,6.4228]
[1720778500183,18.5062,135.09,135.03,6.4228]
[1720778500382,7.4047,135.05,135.03,6.4228]
[1720778500877,7.4042,135.06,135.03,6.4228]
[1720778501392,7.4049,135.05,135.03,6.4228]
[1720778501601,48.0662,135.09,135.02,15.2299]
[1720778501761,7.4033,135.08,135.02,15.2299]
[1720778502069,7.4037,135.07,135.03,7.4055]
[1720778502276,48.0649,135.1,135.02,22.6361]
[1720778502518,65.0,135.09,135.02,15.2299]
[1720778502692,7.4044,135.06,135.02,22.6361]
[1720778502864,29.56,135.08,135.02,15.2299]
[1720778503067,29.56,135.06,134.99,21.9751]
[1720778503412,7.4065,135.02,134.99,21.9751]
[1720778504371,48.0704,135.06,135.0,7.407]
[1720778504606,6.2564,135.08,135.01,7.4065]
[1720778504784,7.405,135.05,135.01,7.4065]
[1720778505088,7.4043,135.06,135.02,7.406]
[1720778506256,54.11950722,135.13,135.03,7.4055]
[1720778506257,7.4036,135.07,135.03,7.4055]
[1720778506459,7.4017,135.11,135.07,7.4034]
[1720778506664,18.499,135.15,135.06,15.9533]
[1720778507077,7.4013,135.12,135.07,7.4033]
[1720778507274,7.4013,135.11,135.07,7.4033]
[1720778507485,7.4019,135.1,135.06,23.3572]
[1720778507766,7.4026,135.09,135.06,15.9533]
[1720778507963,7.403,135.08,135.06,15.9533]
[1720778508572,7.4032,135.08,135.06,15.9533]
[1720778508790,18.5037,135.11,135.06,15.9533]
[1720778509000,7.4027,135.09,135.06,15.9533]
[1720778509189,18.5037,135.11,135.06,15.9533]
[1720778509190,7.4031,135.08,135.06,15.9533]
[1720778509508,7.4035,135.07,135.06,15.9533]
[1720778509686,7.4035,135.07,135.05,6.3253]
[1720778509854,7.4042,135.06,135.03,16.1646]
[1720778510963,7.4048,135.05,135.03,16.1646]
[1720778511510,7.4058,135.03,135.0,15.2717]
[1720778511995,18.5117,135.05,134.98,6.1274]
[1720778512179,45.0,135.04,134.98,6.1274]
[1720778512377,7.4071,135.01,134.98,6.1274]
[1720778512578,7.4064,135.02,134.98,13.5357]
[1720778512786,7.4064,135.02,134.98,6.1274]
[1720778512989,7.4069,135.01,134.98,6.1274]
[1720778513185,7.4063,135.02,134.98,13.5358]
[1720778513374,7.4064,135.02,134.98,13.5358]
[1720778514528,7.4059,135.03,134.99,7.4076]
[1720778515073,33.27,135.07,134.99,7.4076]
[1720778515269,65.0,135.06,134.99,7.4076]
[1720778515472,20.0,135.06,134.99,7.4076]
[1720778515683,45.0,135.05,134.98,6.1274]
[1720778515985,7.4065,135.02,134.98,13.5356]
[1720778516207,27.4056,135.04,134.99,7.4077]
[1720778516493,7.4059,135.03,134.99,7.4077]
[1720778516670,7.4063,135.02,134.98,13.5357]
[1720778516873,20.0,135.04,134.98,6.1274]
[1720778517088,7.4072,135.01,134.98,6.1274]
[1720778518272,7.4065,135.02,134.98,13.5358]
[1720778518594,20.0,135.04,134.98,6.1274]
[1720778518961,7.4077,135.0,134.98,6.1274]
[1720778519194,20.0,135.04,134.98,6.1274]
[1720778519195,7.4069,135.01,134.98,6.1274]
[1720778519399,7.4064,135.02,134.98,13.5355]
[1720778519573,7.4068,135.01,134.98,6.1274]
[1720778520705,7.4068,135.01,134.97,22.9246]
[1720778520706,7.4085,134.98,134.97,15.5158]
[1720778521760,7.408,134.99,134.97,15.5158]
[1720778521872,7.4073,135.01,134.97,15.5158]
[1720778522072,20.0,135.04,134.97,15.5158]
[1720778522375,7.4077,135.0,134.97,15.5158]
[1720778522601,7.4074,135.0,134.97,15.5158]
[1720778522796,18.5133,135.04,134.97,15.5158]
[1720778523002,7.4068,135.02,134.98,7.4081]
[1720778523696,7.4069,135.01,134.97,15.5158]
[1720778524007,7.4082,134.99,134.97,15.5158]
[1720778524296,7.408,134.99,134.97,15.5158]
[1720778524596,7.4075,135.0,134.97,15.5158]
[1720778524997,7.4089,134.98,134.95,6.029]
[1720778525474,7.4082,134.99,134.95,13.4389]
[1720778525790,29.59,135.02,134.95,6.029]
[1720778525995,37.33821344,135.07,135.0,24.0271]
[1720778526202,29.59,135.07,135.0,24.0271]
[1720778526386,7.405,135.05,135.0,24.0271]
[1720778526585,7.405,135.05,135.01,7.4067]
[1720778526810,29.59,135.07,135.0,16.6203]
[1720778526992,29.59,135.09,135.01,6.2506]
[1720778527175,7.4038,135.07,135.02,7.4061]
[1720778527375,18.5035,135.11,135.01,6.2506]
[1720778527598,48.0935,135.11,135.01,6.2506]
[1720778527770,48.0935,135.11,135.02,1.47519577]
[1720778527975,7.4038,135.07,135.03,7.4055]
[1720778528397,7.4019,135.11,135.06,7.404]
[1720778528610,7.4014,135.11,135.07,7.4034]
[1720778528792,18.5025,135.12,135.04,7.4048]
[1720778529109,7.4033,135.08,135.04,7.4048]
[1720778529279,7.4033,135.08,135.03,7.4055]
[1720778529889,18.5051,135.1,135.02,15.846]
[1720778530092,7.4044,135.06,135.02,15.846]
[1720778530582,45.0,135.09,135.04,7.4048]
[1720778530583,7.4026,135.09,135.04,7.4048]
[1720778530790,28.5047,135.11,135.02,15.846]
[1720778530990,7.404,135.07,135.02,23.2521]
[1720778531393,7.4031,135.08,135.02,15.846]
[1720778531802,7.4038,135.07,135.03,7.4055]
[1720778532196,20.0,135.1,135.02,15.846]
[1720778532392,7.4037,135.07,135.03,7.4056]
[1720778532996,7.4043,135.06,135.02,23.2521]
[1720778533200,7.4052,135.04,135.02,15.846]
[1720778533584,7.4057,135.03,134.98,22.8094]
[1720778533788,7.4057,135.03,134.99,7.4076]
[1720778533989,7.4048,135.05,134.99,0.45547245]
[1720778534197,10.0,135.08,134.98,30.2177]
[1720778534198,7.4062,135.03,134.98,30.2177]
[1720778534510,10.0,135.08,134.98,30.2177]
[1720778534511,7.4063,135.02,134.98,30.2177]
[1720778534680,7.405,135.05,134.98,22.8094]
[1720778535007,7.4043,135.06,134.98,22.8094]
[1720778535200,7.4043,135.06,135.02,7.4061]
[1720778535399,7.4047,135.05,135.01,7.4066]
[1720778535787,7.4052,135.04,135.0,7.4073]
[1720778535987,7.4048,135.05,135.01,7.4067]
[1720778536187,7.4041,135.06,135.02,7.4058]
[1720778536696,18.5074,135.09,134.98,22.8094]
[1720778537026,65.0,135.08,134.98,22.8094]
[1720778537600,7.4052,135.04,135.0,7.4072]
[1720778537913,18.509,135.07,134.98,30.2178]
[1720778538094,7.4066,135.02,134.98,30.2178]
[1720778538602,7.406,135.03,134.98,30.2178]
[1720778538805,7.4065,135.02,134.98,30.2178]
[1720778539001,10.0,135.05,134.98,16.2181]
[1720778539201,65.0,135.04,134.98,16.2181]
[1720778539605,18.5148,135.03,134.98,16.2181]
[1720778539794,20.0,135.02,134.98,16.2181]
[1720778540508,7.4075,135.0,134.98,16.2181]
[1720778541620,7.407,135.01,134.98,16.2181]
[1720778542393,7.4079,134.99,134.98,16.2181]
[1720778542602,7.4078,135.0,134.98,16.2181]
[1720778543209,7.4079,134.99,134.98,16.2181]
[1720778543602,7.4076,135.0,134.98,16.2181]
[1720778544506,20.0,135.02,134.98,16.2181]
[1720778544726,7.4076,135.0,134.98,16.2181]
[1720778544912,20.0,135.02,134.98,16.2181]
[1720778544913,7.4079,134.99,134.98,16.2181]
[1720778545110,18.5171,135.01,134.95,21.9641]
[1720778545306,7.4092,134.97,134.95,21.9641]
[1720778545941,7.4081,134.99,134.95,29.3739]
[1720778546228,38.5168,135.02,134.96,7.4093]
[1720778546229,7.4071,135.01,134.96,7.4093]
[1720778546439,7.4074,135.0,134.96,7.4093]
[1720778547338,18.5143,135.04,134.95,21.9641]
[1720778547524,7.73668965,135.06,134.99,7.4079]
[1720778547525,7.4059,135.03,134.99,7.4079]
[1720778547908,26.24698965,135.06,134.95,21.9641]
[1720778548112,7.4071,135.01,134.97,7.4088]
[1720778548312,7.4071,135.01,134.96,7.4093]
[1720778548511,7.4071,135.01,134.95,21.9641]
[1720778548512,7.407,135.01,134.97,7.409]
[1720778548726,7.4064,135.02,134.98,7.4083]
[1720778548913,7.406,135.03,134.98,7.4083]
[1720778549116,7.406,135.03,134.99,7.4078]
[1720778549512,29.58,135.04,135.0,7.4071]
[1720778549830,29.58,135.06,135.01,7.4067]
[1720778550241,7.405,135.05,135.01,23.0119]
[1720778550407,7.4043,135.06,135.02,13.5279]
[1720778550603,29.58,135.08,135.02,13.528]
[1720778550834,29.58,135.08,135.02,6.1219]
[1720778550835,7.4047,135.05,135.02,6.1219]
[1720778551016,18.5061,135.09,135.02,7.60307417]
[1720778551216,7.4039,135.07,135.03,7.4055]
[1720778552022,7.4041,135.06,135.02,15.00917417]
[1720778552221,7.4037,135.07,135.02,15.00917417]
[1720778552616,7.4037,135.07,135.03,7.4056]
[1720778553921,7.4041,135.06,135.02,13.528]
[1720778554219,7.4037,135.07,135.03,7.4056]
[1720778555332,7.4031,135.08,135.04,8.88612072]
[1720778555928,7.4036,135.07,135.03,7.4056]
[1720778556329,18.505,135.1,135.02,13.5279]
[1720778556330,7.4043,135.06,135.02,13.5279]
[1720778556921,7.4039,135.07,135.03,7.4055]
[1720778557335,7.4032,135.08,135.02,6.1219]
[1720778558019,7.4032,135.08,135.04,7.405]
[1720778558937,29.58,135.11,135.04,7.405]
[1720778559824,7.4033,135.08,135.04,7.405]
[1720778560230,7.4036,135.07,135.03,8.88640468]
[1720778561217,7.4036,135.07,135.03,7.4055]
[1720778562063,7.4032,135.08,135.04,7.4051]
[1720778564244,48.0837,135.11,135.02,6.1219]
[1720778564422,7.4051,135.05,135.02,6.1219]
[1720778564940,48.0864,135.09,135.02,13.528]
[1720778564941,7.4042,135.06,135.02,13.528]
[1720778565631,7.4037,135.07,135.03,7.4056]
[1720778565816,7.4032,135.08,135.04,7.4051]
[1720778566417,7.4039,135.07,135.03,7.4056]
[1720778566638,7.4041,135.06,135.02,13.5279]
[1720778566943,6.9041,135.06,135.02,13.5279]
[1720778567136,7.4047,135.05,135.02,6.1219]
[1720778570031,7.4047,135.05,135.02,13.5282]
[1720778570232,7.4041,135.06,135.02,13.5282]
[1720778570433,7.4041,135.06,135.03,7.4057]
[1720778571555,7.4041,135.06,135.02,13.5279]
[1720778573436,29.58,135.09,135.04,7.405]
[1720778573655,7.4033,135.08,135.04,7.405]
[1720778574747,54.88339763,135.11,135.02,6.1219]
[1720778574961,36.37989763,135.11,135.02,6.1219]
[1720778575132,7.4031,135.08,135.04,7.4051]
[1720778575558,54.88449763,135.11,135.03,7.4056]
[1720778575867,7.4038,135.07,135.03,7.4056]
[1720778576459,7.4038,135.07,135.04,7.4052]
[1720778576650,7.4032,135.08,135.04,7.4052]
[1720778580466,44.72755566,135.13,135.07,15.473]
[1720778580467,55.80545566,135.13,135.07,15.473]
[1720778580651,7.4027,135.09,135.07,15.473]
[1720778580958,48.71431918,135.13,135.07,15.473]
[1720778581142,7.4019,135.1,135.07,15.473]
[1720778581351,48.71431918,135.13,135.07,15.473]
[1720778581352,7.4027,135.09,135.07,15.473]
[1720778581552,7.4021,135.1,135.07,15.473]
[1720778581868,7.4021,135.1,135.07,22.8765]
[1720778582658,7.4015,135.11,135.07,22.8765]
[1720778583052,7.4008,135.12,135.07,15.473]
[1720778583355,7.4016,135.11,135.07,15.473]
[1720778583561,7.401,135.12,135.08,7.4029]
[1720778584157,7.4015,135.11,135.07,15.473]
[1720778584364,7.4015,135.11,135.07,22.8762]
[1720778584584,30.53042877,135.13,135.07,15.473]
[1720778584760,7.4022,135.1,135.07,15.473]
[1720778584946,36.9815,135.11,135.07,22.8763]
[1720778585153,36.9816,135.11,135.07,22.8762]
[1720778585651,7.4016,135.11,135.07,22.8762]
[1720778585856,7.4009,135.12,135.08,7.4028]